[Event "Titled Tuesday Blitz May 2 Early 2023"]
[White "Paravyan, David"]
[Black "Sieciechowicz, Marcin"]
[WhiteFideId "4194985"]
[BlackFideId "1130170"]
[WhiteElo "2563"]
[BlackElo "2302"]
[Result "1-0"]
[Round "09"]
[TimeControl "180+2"]
[Date "2023.05.02"]
[WhiteClock "0:02:21"]
[BlackClock "0:01:05"]

1. e4 {[%clk 0:03:00]}  c5 {[%clk 0:02:58]} 2. Nf3 {[%clk 0:03:01]}  d6 {[%clk 0:02:59]} 3. d4 {[%clk 0:03:02]}  cxd4 {[%clk 0:03:00]} 4. Nxd4 {[%clk 0:03:02]}  Nf6 {[%clk 0:03:00]} 5. Nc3 {[%clk 0:03:03]}  a6 {[%clk 0:03:01]} 6. f3 {[%clk 0:03:04]}  e5 {[%clk 0:03:00]} 7. Nb3 {[%clk 0:03:04]}  Be7 {[%clk 0:03:00]} 8. Be3 {[%clk 0:03:05]}  Be6 {[%clk 0:03:00]} 9. Qd2 {[%clk 0:03:05]}  h5 {[%clk 0:03:00]} 10. Nd5 {[%clk 0:03:05]}  Nxd5 {[%clk 0:02:59]} 11. exd5 {[%clk 0:03:05]}  Bf5 {[%clk 0:03:00]} 12. Be2 {[%clk 0:03:06]}  Nd7 {[%clk 0:02:58]} 13. O-O {[%clk 0:03:06]}  h4 {[%clk 0:02:53]} 14. f4 {[%clk 0:03:06]}  e4 {[%clk 0:02:44]} 15. Nd4 {[%clk 0:03:05]}  Bh7 {[%clk 0:02:44]} 16. c4 {[%clk 0:02:58]}  Bf6 {[%clk 0:02:38]} 17. Rac1 {[%clk 0:02:52]}  Kf8 {[%clk 0:02:33]} 18. b4 {[%clk 0:02:42]}  Rc8 {[%clk 0:02:20]} 19. Bg4 {[%clk 0:02:37]}  Rc7 {[%clk 0:02:04]} 20. c5 {[%clk 0:02:34]}  dxc5 {[%clk 0:01:40]} 21. bxc5 {[%clk 0:02:35]}  Nxc5 {[%clk 0:01:30]} 22. d6 {[%clk 0:02:34]}  Qxd6 {[%clk 0:01:27]} 23. Ne6+ {[%clk 0:02:34]}  Ke7 {[%clk 0:01:14]} 24. Nxc7 {[%clk 0:02:23]}  Qxd2 {[%clk 0:01:10]} 25. Bxd2 {[%clk 0:02:24]}  Nd3 {[%clk 0:01:06]} 26. Nd5+ {[%clk 0:02:21]}  Kd6 {[%clk 0:01:07]} 27. Nxf6 {[%clk 0:02:21]}  gxf6 {[%clk 0:01:05]} 28. f5 {[%clk 0:02:21]} 1-0


[Site "https://www.chess.com"]

[Event "Titled Tuesday Blitz May 2 Early 2023"]
[White "Gharibyan, Mamikon"]
[Black "Deac, Bogdan-Daniel"]
[WhiteFideId "13308300"]
[BlackFideId "1226380"]
[WhiteElo "2445"]
[BlackElo "2649"]
[Result "1-0"]
[Round "09"]
[TimeControl "180+2"]
[Date "2023.05.02"]
[WhiteClock "0:00:04"]
[BlackClock "0:00:07"]

1. d4 {[%clk 0:03:00]}  Nf6 {[%clk 0:02:58]} 2. Nf3 {[%clk 0:03:00]}  d5 {[%clk 0:02:57]} 3. Bf4 {[%clk 0:02:59]}  c5 {[%clk 0:02:57]} 4. e3 {[%clk 0:02:59]}  Nc6 {[%clk 0:02:58]} 5. Nbd2 {[%clk 0:02:59]}  Nh5 {[%clk 0:02:58]} 6. dxc5 {[%clk 0:02:53]}  Nxf4 {[%clk 0:02:58]} 7. exf4 {[%clk 0:02:54]}  Qa5 {[%clk 0:02:58]} 8. c4 {[%clk 0:02:44]}  e6 {[%clk 0:02:58]} 9. a3 {[%clk 0:02:39]}  Qxc5 {[%clk 0:02:57]} 10. b4 {[%clk 0:02:37]}  Qd6 {[%clk 0:02:57]} 11. g3 {[%clk 0:02:36]}  g6 {[%clk 0:02:57]} 12. Bg2 {[%clk 0:02:33]}  Bg7 {[%clk 0:02:57]} 13. Rb1 {[%clk 0:02:32]}  a5 {[%clk 0:02:50]} 14. O-O {[%clk 0:02:27]}  axb4 {[%clk 0:02:50]} 15. cxd5 {[%clk 0:02:06]}  exd5 {[%clk 0:02:28]} 16. Re1+ {[%clk 0:01:57]}  Ne7 {[%clk 0:02:25]} 17. axb4 {[%clk 0:01:47]}  Bf5 {[%clk 0:02:17]} 18. Rb3 {[%clk 0:01:43]}  O-O {[%clk 0:02:17]} 19. Nh4 {[%clk 0:01:19]}  Ra1 {[%clk 0:02:03]} 20. Qe2 {[%clk 0:01:10]}  Rxe1+ {[%clk 0:01:55]} 21. Qxe1 {[%clk 0:01:11]}  Be6 {[%clk 0:01:56]} 22. Nhf3 {[%clk 0:01:07]}  Ra8 {[%clk 0:01:42]} 23. Rb1 {[%clk 0:00:58]}  Bf5 {[%clk 0:01:33]} 24. Rd1 {[%clk 0:00:52]}  Qxb4 {[%clk 0:01:32]} 25. Ne5 {[%clk 0:00:44]}  Ra2 {[%clk 0:01:23]} 26. h4 {[%clk 0:00:28]}  h5 {[%clk 0:01:04]} 27. Ndf3 {[%clk 0:00:12]}  Qxe1+ {[%clk 0:01:02]} 28. Rxe1 {[%clk 0:00:13]}  f6 {[%clk 0:00:41]} 29. Nd7 {[%clk 0:00:04]}  Kf7 {[%clk 0:00:29]} 30. Nc5 {[%clk 0:00:04]}  b6 {[%clk 0:00:27]} 31. Nb7 {[%clk 0:00:04]}  Bf8 {[%clk 0:00:11]} 32. Nd4 {[%clk 0:00:04]}  Bg4 {[%clk 0:00:05]} 33. Rc1 {[%clk 0:00:03]}  Ke8 {[%clk 0:00:06]} 34. Nd6+ {[%clk 0:00:03]}  Kd7 {[%clk 0:00:06]} 35. N4b5 {[%clk 0:00:03]}  Nc6 {[%clk 0:00:04]} 36. Bxd5 {[%clk 0:00:03]}  Nb4 {[%clk 0:00:04]} 37. Bxa2 {[%clk 0:00:03]}  Bxd6 {[%clk 0:00:04]} 38. Bc4 {[%clk 0:00:03]}  Bc5 {[%clk 0:00:05]} 39. Rb1 {[%clk 0:00:03]}  Bf5 {[%clk 0:00:03]} 40. Ra1 {[%clk 0:00:03]}  Kc6 {[%clk 0:00:04]} 41. Ra7 {[%clk 0:00:03]}  Bd6 {[%clk 0:00:04]} 42. Nxd6 {[%clk 0:00:02]}  Kxd6 {[%clk 0:00:04]} 43. Rb7 {[%clk 0:00:03]}  Kc5 {[%clk 0:00:04]} 44. Be2 {[%clk 0:00:03]}  Nc6 {[%clk 0:00:04]} 45. f3 {[%clk 0:00:03]}  Nd4 {[%clk 0:00:04]} 46. Kf2 {[%clk 0:00:04]}  b5 {[%clk 0:00:05]} 47. Bd1 {[%clk 0:00:03]}  b4 {[%clk 0:00:04]} 48. g4 {[%clk 0:00:03]}  Be6 {[%clk 0:00:04]} 49. f5 {[%clk 0:00:02]}  Bd5 {[%clk 0:00:04]} 50. Rc7+ {[%clk 0:00:02]}  Kd6 {[%clk 0:00:03]} 51. Rc8 {[%clk 0:00:01]}  hxg4 {[%clk 0:00:02]} 52. Rd8+ {[%clk 0:00:02]}  Kc5 {[%clk 0:00:01]} 53. fxg6 {[%clk 0:00:03]}  g3+ {[%clk 0:00:02]} 54. Kxg3 {[%clk 0:00:03]}  b3 {[%clk 0:00:02]} 55. Kf2 {[%clk 0:00:01]}  b2 {[%clk 0:00:02]} 56. Rb8 {[%clk 0:00:02]}  Bb3 {[%clk 0:00:02]} 57. Bxb3 {[%clk 0:00:02]}  b1=Q {[%clk 0:00:02]} 58. Rc8+ {[%clk 0:00:03]}  Kd6 {[%clk 0:00:02]} 59. g7 {[%clk 0:00:03]}  Qb2+ {[%clk 0:00:02]} 60. Bc2 {[%clk 0:00:04]}  Nxc2 {[%clk 0:00:02]} 61. g8=Q {[%clk 0:00:04]}  Nd4+ {[%clk 0:00:03]} 62. Kg3 {[%clk 0:00:04]}  Nf5+ {[%clk 0:00:03]} 63. Kh3 {[%clk 0:00:04]}  Ne7 {[%clk 0:00:04]} 64. Qd8+ {[%clk 0:00:04]}  Ke6 {[%clk 0:00:04]} 65. Rc7 {[%clk 0:00:03]}  Qb4 {[%clk 0:00:04]} 66. Rxe7+ {[%clk 0:00:02]}  Qxe7 {[%clk 0:00:05]} 67. Qxe7+ {[%clk 0:00:03]}  Kxe7 {[%clk 0:00:06]} 68. Kg4 {[%clk 0:00:04]}  Ke6 {[%clk 0:00:07]} 69. h5 {[%clk 0:00:04]}  Kf7 {[%clk 0:00:07]} 70. Kf5 {[%clk 0:00:04]} 1-0


[Site "https://www.chess.com"]

[Event "Titled Tuesday Blitz May 2 Early 2023"]
[White "Kosakowski, Jakub"]
[Black "Ibarra Jerez, Jose Carlos"]
[WhiteFideId "1185080"]
[BlackFideId "2226332"]
[WhiteElo "2488"]
[BlackElo "2638"]
[Result "1-0"]
[Round "09"]
[TimeControl "180+2"]
[Date "2023.05.02"]
[WhiteClock "0:00:07"]
[BlackClock "0:00:01"]

1. d4 {[%clk 0:02:59]}  Nf6 {[%clk 0:03:00]} 2. Nf3 {[%clk 0:02:59]}  g6 {[%clk 0:03:00]} 3. Nbd2 {[%clk 0:03:00]}  Bg7 {[%clk 0:02:59]} 4. e4 {[%clk 0:03:00]}  d6 {[%clk 0:03:00]} 5. Bb5+ {[%clk 0:03:00]}  c6 {[%clk 0:02:54]} 6. Bd3 {[%clk 0:03:00]}  O-O {[%clk 0:02:54]} 7. O-O {[%clk 0:03:00]}  c5 {[%clk 0:02:51]} 8. c3 {[%clk 0:02:56]}  cxd4 {[%clk 0:02:50]} 9. cxd4 {[%clk 0:02:56]}  Nc6 {[%clk 0:02:50]} 10. h3 {[%clk 0:02:57]}  d5 {[%clk 0:02:38]} 11. e5 {[%clk 0:02:51]}  Ne8 {[%clk 0:02:38]} 12. Nb3 {[%clk 0:02:48]}  Nc7 {[%clk 0:02:35]} 13. Re1 {[%clk 0:02:47]}  f6 {[%clk 0:02:27]} 14. exf6 {[%clk 0:02:33]}  exf6 {[%clk 0:02:26]} 15. Bd2 {[%clk 0:02:19]}  Qd6 {[%clk 0:02:21]} 16. Rc1 {[%clk 0:02:17]}  Ne6 {[%clk 0:01:56]} 17. a3 {[%clk 0:02:03]}  Rd8 {[%clk 0:01:32]} 18. Bb5 {[%clk 0:01:31]}  Ne7 {[%clk 0:01:22]} 19. Bb4 {[%clk 0:01:29]}  Qb6 {[%clk 0:01:17]} 20. Bxe7 {[%clk 0:01:24]}  Qxb5 {[%clk 0:01:18]} 21. Bxd8 {[%clk 0:01:24]}  Nxd8 {[%clk 0:01:18]} 22. Rc5 {[%clk 0:01:06]}  Qd7 {[%clk 0:01:15]} 23. Qc2 {[%clk 0:01:05]}  Ne6 {[%clk 0:01:14]} 24. Rc3 {[%clk 0:01:04]}  b6 {[%clk 0:01:12]} 25. Rce3 {[%clk 0:00:53]}  Qd6 {[%clk 0:01:10]} 26. Qe2 {[%clk 0:00:50]}  Kf7 {[%clk 0:01:00]} 27. Nc1 {[%clk 0:00:50]}  Bd7 {[%clk 0:00:59]} 28. Nd3 {[%clk 0:00:50]}  Rc8 {[%clk 0:00:52]} 29. Qd1 {[%clk 0:00:33]}  a5 {[%clk 0:00:27]} 30. Qd2 {[%clk 0:00:33]}  Re8 {[%clk 0:00:19]} 31. R3e2 {[%clk 0:00:32]}  Rc8 {[%clk 0:00:18]} 32. g3 {[%clk 0:00:29]}  h5 {[%clk 0:00:17]} 33. Nf4 {[%clk 0:00:25]}  Nxf4 {[%clk 0:00:05]} 34. Re7+ {[%clk 0:00:25]}  Qxe7 {[%clk 0:00:03]} 35. Rxe7+ {[%clk 0:00:25]}  Kxe7 {[%clk 0:00:04]} 36. Qxf4 {[%clk 0:00:26]}  Bxh3 {[%clk 0:00:04]} 37. Qe3+ {[%clk 0:00:19]}  Kf7 {[%clk 0:00:04]} 38. Qb3 {[%clk 0:00:19]}  Be6 {[%clk 0:00:02]} 39. Qxb6 {[%clk 0:00:19]}  Rc2 {[%clk 0:00:03]} 40. Qxa5 {[%clk 0:00:16]}  Kg8 {[%clk 0:00:02]} 41. Qa4 {[%clk 0:00:12]}  Rc1+ {[%clk 0:00:02]} 42. Kg2 {[%clk 0:00:12]}  Bf5 {[%clk 0:00:03]} 43. Qa8+ {[%clk 0:00:08]}  Kh7 {[%clk 0:00:02]} 44. Qxd5 {[%clk 0:00:09]}  Rc2 {[%clk 0:00:03]} 45. Nh4 {[%clk 0:00:08]}  Bd3 {[%clk 0:00:03]} 46. Qf3 {[%clk 0:00:08]}  Rd2 {[%clk 0:00:03]} 47. Qe3 {[%clk 0:00:08]}  Rd1 {[%clk 0:00:03]} 48. d5 {[%clk 0:00:06]}  Bf1+ {[%clk 0:00:04]} 49. Kh2 {[%clk 0:00:06]}  Rxd5 {[%clk 0:00:03]} 50. Qe4 {[%clk 0:00:05]}  Rd1 {[%clk 0:00:03]} 51. Qxg6+ {[%clk 0:00:05]}  Kh8 {[%clk 0:00:02]} 52. Qxh5+ {[%clk 0:00:05]}  Kg8 {[%clk 0:00:02]} 53. Qxd1 {[%clk 0:00:06]}  Bc4 {[%clk 0:00:01]} 54. Nf5 {[%clk 0:00:07]}  Bf8 {[%clk 0:00:01]} 55. Qg4+ {[%clk 0:00:07]} 1-0


[Site "https://www.chess.com"]

[Event "Titled Tuesday Blitz May 2 Early 2023"]
[White "Kramnik, Vladimir"]
[Black "Postny, Evgeny"]
[WhiteFideId "4101588"]
[BlackFideId "2804344"]
[WhiteElo "2712"]
[BlackElo "2504"]
[Result "1-0"]
[Round "09"]
[TimeControl "180+2"]
[Date "2023.05.02"]
[WhiteClock "0:00:08"]
[BlackClock "0:00:01"]

1. e4 {[%clk 0:03:00]}  e5 {[%clk 0:02:59]} 2. Nf3 {[%clk 0:02:59]}  Nc6 {[%clk 0:03:00]} 3. g3 {[%clk 0:02:59]}  Bc5 {[%clk 0:02:57]} 4. Bg2 {[%clk 0:02:57]}  d6 {[%clk 0:02:57]} 5. c3 {[%clk 0:02:56]}  Nge7 {[%clk 0:02:53]} 6. d4 {[%clk 0:02:52]}  Bb6 {[%clk 0:02:53]} 7. Be3 {[%clk 0:02:43]}  O-O {[%clk 0:02:48]} 8. O-O {[%clk 0:02:36]}  d5 {[%clk 0:02:32]} 9. Nbd2 {[%clk 0:02:30]}  exd4 {[%clk 0:02:30]} 10. Nxd4 {[%clk 0:02:28]}  Nxd4 {[%clk 0:02:28]} 11. Bxd4 {[%clk 0:02:24]}  c5 {[%clk 0:02:03]} 12. Be3 {[%clk 0:02:23]}  d4 {[%clk 0:02:04]} 13. Bf4 {[%clk 0:02:23]}  Ng6 {[%clk 0:02:04]} 14. e5 {[%clk 0:02:15]}  Nxf4 {[%clk 0:01:57]} 15. gxf4 {[%clk 0:02:15]}  f6 {[%clk 0:01:35]} 16. Qb3+ {[%clk 0:02:05]}  Kh8 {[%clk 0:01:34]} 17. Rae1 {[%clk 0:01:55]}  dxc3 {[%clk 0:01:31]} 18. Nc4 {[%clk 0:01:51]}  fxe5 {[%clk 0:01:17]} 19. fxe5 {[%clk 0:01:41]}  Be6 {[%clk 0:01:12]} 20. Qxc3 {[%clk 0:01:37]}  Qd4 {[%clk 0:01:11]} 21. Nd6 {[%clk 0:01:31]}  Qxc3 {[%clk 0:00:51]} 22. bxc3 {[%clk 0:01:31]}  Ba5 {[%clk 0:00:51]} 23. Re3 {[%clk 0:01:27]}  Rab8 {[%clk 0:00:45]} 24. Nxb7 {[%clk 0:01:22]}  Bb6 {[%clk 0:00:44]} 25. Nd6 {[%clk 0:01:02]}  c4 {[%clk 0:00:44]} 26. Re4 {[%clk 0:00:45]}  Ba5 {[%clk 0:00:41]} 27. f4 {[%clk 0:00:36]}  Bxc3 {[%clk 0:00:26]} 28. f5 {[%clk 0:00:29]}  Bg8 {[%clk 0:00:23]} 29. e6 {[%clk 0:00:25]}  Bb4 {[%clk 0:00:21]} 30. Nxc4 {[%clk 0:00:24]}  Bc5+ {[%clk 0:00:19]} 31. Kh1 {[%clk 0:00:24]}  Rb4 {[%clk 0:00:17]} 32. Ne5 {[%clk 0:00:23]}  Rxe4 {[%clk 0:00:14]} 33. Bxe4 {[%clk 0:00:23]}  Bd6 {[%clk 0:00:14]} 34. Nc4 {[%clk 0:00:21]}  Be7 {[%clk 0:00:13]} 35. Rd1 {[%clk 0:00:19]}  g6 {[%clk 0:00:12]} 36. Rd7 {[%clk 0:00:19]}  Re8 {[%clk 0:00:10]} 37. Nd6 {[%clk 0:00:15]}  Bxd6 {[%clk 0:00:08]} 38. Rxd6 {[%clk 0:00:15]}  gxf5 {[%clk 0:00:08]} 39. Bxf5 {[%clk 0:00:15]}  Kg7 {[%clk 0:00:08]} 40. Ra6 {[%clk 0:00:14]}  Re7 {[%clk 0:00:08]} 41. Kg2 {[%clk 0:00:14]}  Kf6 {[%clk 0:00:08]} 42. Bg4 {[%clk 0:00:14]}  Bxe6 {[%clk 0:00:06]} 43. Kf3 {[%clk 0:00:13]}  Ke5 {[%clk 0:00:05]} 44. Bxe6 {[%clk 0:00:13]}  Rxe6 {[%clk 0:00:06]} 45. Rxa7 {[%clk 0:00:13]}  Rh6 {[%clk 0:00:04]} 46. Kg3 {[%clk 0:00:12]}  Kd5 {[%clk 0:00:04]} 47. h4 {[%clk 0:00:11]}  Kc5 {[%clk 0:00:03]} 48. Kg4 {[%clk 0:00:10]}  Rg6+ {[%clk 0:00:02]} 49. Kh5 {[%clk 0:00:10]}  Rf6 {[%clk 0:00:01]} 50. Rxh7 {[%clk 0:00:09]}  Ra6 {[%clk 0:00:01]} 51. Rf7 {[%clk 0:00:08]} 1-0


[Site "https://www.chess.com"]

[Event "Titled Tuesday Blitz May 2 Early 2023"]
[White "Demchenko, Anton"]
[Black "Karthik Rajaa"]
[WhiteFideId "4160258"]
[BlackFideId "25035215"]
[WhiteElo "2545"]
[BlackElo "2215"]
[Result "1-0"]
[Round "09"]
[TimeControl "180+2"]
[Date "2023.05.02"]
[WhiteClock "0:00:05"]
[BlackClock "0:00:06"]

1. e4 {[%clk 0:02:54]}  c6 {[%clk 0:03:00]} 2. d4 {[%clk 0:02:50]}  d5 {[%clk 0:02:59]} 3. e5 {[%clk 0:02:51]}  c5 {[%clk 0:02:54]} 4. Nf3 {[%clk 0:02:51]}  cxd4 {[%clk 0:02:54]} 5. Nxd4 {[%clk 0:02:52]}  Nc6 {[%clk 0:02:55]} 6. Nxc6 {[%clk 0:02:53]}  bxc6 {[%clk 0:02:54]} 7. Bd3 {[%clk 0:02:54]}  e6 {[%clk 0:02:55]} 8. Nd2 {[%clk 0:02:53]}  Ne7 {[%clk 0:02:53]} 9. Nf3 {[%clk 0:02:49]}  a5 {[%clk 0:02:48]} 10. Qe2 {[%clk 0:02:49]}  Ng6 {[%clk 0:02:46]} 11. h4 {[%clk 0:02:48]}  h6 {[%clk 0:02:12]} 12. Rh3 {[%clk 0:02:44]}  Ne7 {[%clk 0:02:08]} 13. Kf1 {[%clk 0:02:26]}  Qb6 {[%clk 0:02:04]} 14. c4 {[%clk 0:02:26]}  Ba6 {[%clk 0:02:02]} 15. Be3 {[%clk 0:02:25]}  Qb7 {[%clk 0:01:59]} 16. b3 {[%clk 0:02:21]}  g6 {[%clk 0:01:49]} 17. Bc5 {[%clk 0:02:09]}  h5 {[%clk 0:01:49]} 18. Kg1 {[%clk 0:02:03]}  Nf5 {[%clk 0:01:30]} 19. Bxf8 {[%clk 0:02:02]}  Kxf8 {[%clk 0:01:31]} 20. Rc1 {[%clk 0:01:46]}  dxc4 {[%clk 0:01:18]} 21. bxc4 {[%clk 0:01:43]}  Rd8 {[%clk 0:01:15]} 22. Bxf5 {[%clk 0:01:28]}  gxf5 {[%clk 0:01:14]} 23. Qe3 {[%clk 0:01:29]}  Qb4 {[%clk 0:00:53]} 24. a3 {[%clk 0:01:20]}  Qe7 {[%clk 0:00:47]} 25. Rg3 {[%clk 0:01:17]}  c5 {[%clk 0:00:42]} 26. Qc3 {[%clk 0:01:00]}  Bb7 {[%clk 0:00:38]} 27. Qxa5 {[%clk 0:00:55]}  Bxf3 {[%clk 0:00:33]} 28. Rxf3 {[%clk 0:00:52]}  Rg8 {[%clk 0:00:32]} 29. Rb1 {[%clk 0:00:25]}  Rg4 {[%clk 0:00:29]} 30. g3 {[%clk 0:00:15]}  f4 {[%clk 0:00:26]} 31. Rxf4 {[%clk 0:00:13]}  Rxf4 {[%clk 0:00:26]} 32. gxf4 {[%clk 0:00:14]}  Rd4 {[%clk 0:00:27]} 33. Rb8+ {[%clk 0:00:11]}  Kg7 {[%clk 0:00:26]} 34. Qa8 {[%clk 0:00:07]}  Kg6 {[%clk 0:00:16]} 35. Rg8+ {[%clk 0:00:05]}  Kf5 {[%clk 0:00:17]} 36. Qf3 {[%clk 0:00:05]}  Rxf4 {[%clk 0:00:14]} 37. Qxh5+ {[%clk 0:00:05]}  Ke4 {[%clk 0:00:12]} 38. Qe2+ {[%clk 0:00:06]}  Kd4 {[%clk 0:00:08]} 39. Qe3+ {[%clk 0:00:06]}  Kxc4 {[%clk 0:00:07]} 40. Qxf4+ {[%clk 0:00:07]}  Kb5 {[%clk 0:00:08]} 41. Rg3 {[%clk 0:00:07]}  Qd8 {[%clk 0:00:06]} 42. Qf3 {[%clk 0:00:06]}  Qd4 {[%clk 0:00:06]} 43. Qb3+ {[%clk 0:00:05]}  Ka5 {[%clk 0:00:06]} 44. Qc3+ {[%clk 0:00:05]} 1-0


[Site "https://www.chess.com"]

[Event "Titled Tuesday Blitz May 2 Early 2023"]
[White "Zhigalko, Sergei"]
[Black "Averjanov, Alexey"]
[WhiteFideId "13502956"]
[BlackFideId "14109867"]
[WhiteElo "2626"]
[BlackElo "2399"]
[Result "0-1"]
[Round "09"]
[TimeControl "180+2"]
[Date "2023.05.02"]
[WhiteClock "0:00:14"]
[BlackClock "0:00:16"]

1. e4 {[%clk 0:03:00]}  c5 {[%clk 0:02:58]} 2. Nf3 {[%clk 0:03:00]}  d6 {[%clk 0:02:56]} 3. d4 {[%clk 0:03:01]}  cxd4 {[%clk 0:02:56]} 4. Qxd4 {[%clk 0:03:01]}  Bd7 {[%clk 0:02:54]} 5. Bc4 {[%clk 0:03:01]}  Nc6 {[%clk 0:02:52]} 6. Qd3 {[%clk 0:03:02]}  Nf6 {[%clk 0:02:51]} 7. Nc3 {[%clk 0:03:02]}  g6 {[%clk 0:02:45]} 8. Bg5 {[%clk 0:02:57]}  Bg7 {[%clk 0:02:43]} 9. Bb3 {[%clk 0:02:57]}  O-O {[%clk 0:02:41]} 10. O-O-O {[%clk 0:02:58]}  Na5 {[%clk 0:02:36]} 11. e5 {[%clk 0:02:50]}  Nxb3+ {[%clk 0:02:28]} 12. axb3 {[%clk 0:02:50]}  Bf5 {[%clk 0:02:23]} 13. Qe2 {[%clk 0:02:44]}  Nd7 {[%clk 0:01:41]} 14. exd6 {[%clk 0:02:31]}  Qa5 {[%clk 0:01:40]} 15. dxe7 {[%clk 0:02:25]}  Rfc8 {[%clk 0:01:28]} 16. Kb1 {[%clk 0:02:04]}  Rxc3 {[%clk 0:01:25]} 17. e8=Q+ {[%clk 0:01:55]}  Rxe8 {[%clk 0:01:18]} 18. Qxe8+ {[%clk 0:01:55]}  Nf8 {[%clk 0:01:16]} 19. Rd2 {[%clk 0:00:29]}  Rxb3 {[%clk 0:00:43]} 20. Nd4 {[%clk 0:00:29]}  Bxd4 {[%clk 0:00:38]} 21. Rxd4 {[%clk 0:00:30]}  Qc3 {[%clk 0:00:19]} 22. Qxf8+ {[%clk 0:00:17]}  Kxf8 {[%clk 0:00:19]} 23. Bh6+ {[%clk 0:00:18]}  Ke7 {[%clk 0:00:17]} 24. Re1+ {[%clk 0:00:14]}  Qxe1+ {[%clk 0:00:16]} 0-1


[Site "https://www.chess.com"]

[Event "Titled Tuesday Blitz May 2 Early 2023"]
[White "Bacrot, Etienne"]
[Black "Tasev, Dejan"]
[WhiteFideId "605506"]
[BlackFideId "936618"]
[WhiteElo "2663"]
[BlackElo "2244"]
[Result "1-0"]
[Round "09"]
[TimeControl "180+2"]
[Date "2023.05.02"]
[WhiteClock "0:00:20"]
[BlackClock "0:00:23"]

1. e4 {[%clk 0:03:00]}  e5 {[%clk 0:02:59]} 2. Nf3 {[%clk 0:03:00]}  Nc6 {[%clk 0:02:59]} 3. Bb5 {[%clk 0:03:00]}  a6 {[%clk 0:02:59]} 4. Ba4 {[%clk 0:03:00]}  Nf6 {[%clk 0:02:58]} 5. O-O {[%clk 0:03:00]}  b5 {[%clk 0:02:57]} 6. Bb3 {[%clk 0:03:00]}  Be7 {[%clk 0:02:58]} 7. d4 {[%clk 0:02:52]}  d6 {[%clk 0:02:49]} 8. a4 {[%clk 0:02:11]}  Bb7 {[%clk 0:02:25]} 9. d5 {[%clk 0:01:59]}  Na5 {[%clk 0:02:12]} 10. Ba2 {[%clk 0:01:57]}  b4 {[%clk 0:01:52]} 11. Re1 {[%clk 0:01:39]}  O-O {[%clk 0:01:46]} 12. c3 {[%clk 0:01:39]}  b3 {[%clk 0:01:25]} 13. Bxb3 {[%clk 0:01:39]}  Nxb3 {[%clk 0:01:25]} 14. Qxb3 {[%clk 0:01:39]}  Qc8 {[%clk 0:01:24]} 15. Qc2 {[%clk 0:01:39]}  c6 {[%clk 0:01:23]} 16. dxc6 {[%clk 0:01:34]}  Bxc6 {[%clk 0:01:19]} 17. Bg5 {[%clk 0:01:34]}  Qb7 {[%clk 0:01:17]} 18. Nbd2 {[%clk 0:01:29]}  a5 {[%clk 0:01:07]} 19. Nh4 {[%clk 0:01:19]}  h6 {[%clk 0:00:56]} 20. Bxf6 {[%clk 0:01:17]}  Bxf6 {[%clk 0:00:56]} 21. Nf5 {[%clk 0:01:18]}  d5 {[%clk 0:00:51]} 22. exd5 {[%clk 0:01:04]}  Bxd5 {[%clk 0:00:50]} 23. Ne4 {[%clk 0:01:04]}  Bd8 {[%clk 0:00:35]} 24. c4 {[%clk 0:00:58]}  Bxe4 {[%clk 0:00:21]} 25. Rxe4 {[%clk 0:00:55]}  Rb8 {[%clk 0:00:21]} 26. Rb1 {[%clk 0:00:28]}  g6 {[%clk 0:00:20]} 27. Ne3 {[%clk 0:00:20]}  Bb6 {[%clk 0:00:17]} 28. Rxe5 {[%clk 0:00:17]}  Bxe3 {[%clk 0:00:17]} 29. Rxe3 {[%clk 0:00:17]}  Rfc8 {[%clk 0:00:16]} 30. b3 {[%clk 0:00:17]}  Qc6 {[%clk 0:00:17]} 31. Rc3 {[%clk 0:00:17]}  Qc5 {[%clk 0:00:17]} 32. h3 {[%clk 0:00:17]}  Rd8 {[%clk 0:00:17]} 33. Re1 {[%clk 0:00:17]}  Rb7 {[%clk 0:00:17]} 34. Rce3 {[%clk 0:00:17]}  Rbd7 {[%clk 0:00:17]} 35. Re8+ {[%clk 0:00:17]}  Kh7 {[%clk 0:00:17]} 36. Rxd8 {[%clk 0:00:17]}  Rxd8 {[%clk 0:00:17]} 37. Qc3 {[%clk 0:00:17]}  Rd7 {[%clk 0:00:16]} 38. g3 {[%clk 0:00:12]}  g5 {[%clk 0:00:15]} 39. Kg2 {[%clk 0:00:12]}  Kg6 {[%clk 0:00:16]} 40. Qf3 {[%clk 0:00:12]}  f5 {[%clk 0:00:14]} 41. Rd1 {[%clk 0:00:12]}  Rxd1 {[%clk 0:00:14]} 42. Qxd1 {[%clk 0:00:12]}  Qc6+ {[%clk 0:00:15]} 43. Qd5 {[%clk 0:00:13]}  Qf6 {[%clk 0:00:15]} 44. c5 {[%clk 0:00:13]}  f4 {[%clk 0:00:16]} 45. Qd6 {[%clk 0:00:13]}  fxg3 {[%clk 0:00:15]} 46. Qxf6+ {[%clk 0:00:13]}  Kxf6 {[%clk 0:00:16]} 47. Kxg3 {[%clk 0:00:14]}  Ke6 {[%clk 0:00:16]} 48. Kg4 {[%clk 0:00:14]}  Kd5 {[%clk 0:00:17]} 49. Kh5 {[%clk 0:00:15]}  Kxc5 {[%clk 0:00:17]} 50. Kxh6 {[%clk 0:00:15]}  Kb4 {[%clk 0:00:18]} 51. Kxg5 {[%clk 0:00:16]}  Kxb3 {[%clk 0:00:19]} 52. h4 {[%clk 0:00:16]}  Kxa4 {[%clk 0:00:20]} 53. h5 {[%clk 0:00:17]}  Kb4 {[%clk 0:00:21]} 54. h6 {[%clk 0:00:18]}  a4 {[%clk 0:00:22]} 55. h7 {[%clk 0:00:19]}  a3 {[%clk 0:00:23]} 56. h8=Q {[%clk 0:00:19]}  a2 {[%clk 0:00:23]} 57. Qa1 {[%clk 0:00:20]} 1-0


[Site "https://www.chess.com"]